[Event "Hull 4NCL GM Norm Tournament"]
[Site "Canham Turner Centre"]
[Date "2022.10.16"]
[Round "8.5"]
[White "Jackson, James P"]
[Black "Czopor, Maciej"]
[Result "0-1"]
[TimeControl "1hr30 + 30sec inc"]
[WhiteElo "2408"]
[BlackElo "2424"]

1. e4 {[%clk 01:29:42]} {[%emt 00:01:17]} c5 {[%clk 01:30:33]} {[%emt
00:00:27]} 2. Nf3 {[%clk 01:30:07]} {[%emt 00:00:05]} e6 {[%clk 01:30:59]}
{[%emt 00:00:04]} 3. c3 {[%clk 01:30:31]} {[%emt 00:00:06]} Nf6 {[%clk
01:31:09]} {[%emt 00:00:20]} 4. e5 {[%clk 01:30:56]} {[%emt 00:00:05]} Nd5
{[%clk 01:31:36]} {[%emt 00:00:03]} 5. d4 {[%clk 01:31:20]} {[%emt 00:00:05]}
cxd4 {[%clk 01:31:33]} {[%emt 00:00:33]} 6. cxd4 {[%clk 01:31:45]} {[%emt
00:00:05]} b6 {[%clk 01:31:45]} {[%emt 00:00:18]} 7. Bc4 {[%clk 01:28:12]}
{[%emt 00:04:03]} Ba6 {[%clk 01:31:23]} {[%emt 00:00:52]} 8. Bxa6 {[%clk
01:25:59]} {[%emt 00:02:44]} Nxa6 {[%clk 01:31:43]} {[%emt 00:00:09]} 9. O-O
{[%clk 01:26:24]} {[%emt 00:00:04]} Be7 {[%clk 01:30:35]} {[%emt 00:01:38]} 10.
Nbd2 {[%clk 01:23:24]} {[%emt 00:03:30]} O-O {[%clk 01:29:38]} {[%emt
00:01:27]} 11. Ne4 {[%clk 01:23:48]} {[%emt 00:00:06]} Nac7 {[%clk 01:28:03]}
{[%emt 00:02:05]} 12. Bg5 {[%clk 01:22:07]} {[%emt 00:02:11]} f6 {[%clk
01:26:23]} {[%emt 00:02:11]} 13. Bd2 {[%clk 01:18:29]} {[%emt 00:04:08]} f5
{[%clk 01:25:21]} {[%emt 00:01:31]} 14. Nc3 {[%clk 01:18:44]} {[%emt 00:00:15]}
Qc8 {[%clk 01:20:16]} {[%emt 00:05:35]} 15. Qe2 {[%clk 01:08:09]} {[%emt
00:11:05]} Qb7 {[%clk 01:19:29]} {[%emt 00:01:17]} 16. Rfc1 {[%clk 01:06:13]}
{[%emt 00:02:27]} Rfc8 {[%clk 01:17:33]} {[%emt 00:02:27]} 17. Ne1 {[%clk
01:06:20]} {[%emt 00:00:22]} b5 {[%clk 01:06:51]} {[%emt 00:11:12]} 18. Nd3
{[%clk 00:54:45]} {[%emt 00:12:05]} Nxc3 {[%clk 01:03:35]} {[%emt 00:03:46]} 19.
Rxc3 {[%clk 00:49:12]} {[%emt 00:06:03]} Nd5 {[%clk 01:02:50]} {[%emt
00:01:14]} 20. Rb3 {[%clk 00:43:35]} {[%emt 00:06:07]} Rc4 {[%clk 00:49:44]}
{[%emt 00:13:37]} 21. a4 {[%clk 00:36:30]} {[%emt 00:07:35]} Qa6 {[%clk
00:46:30]} {[%emt 00:03:44]} 22. a5 {[%clk 00:25:39]} {[%emt 00:11:21]} Rxd4
{[%clk 00:44:09]} {[%emt 00:02:51]} 23. Ne1 {[%clk 00:25:56]} {[%emt 00:00:13]}
Rc8 {[%clk 00:38:39]} {[%emt 00:06:00]} 24. Nf3 {[%clk 00:25:22]} {[%emt
00:01:03]} Rdc4 {[%clk 00:38:46]} {[%emt 00:00:23]} 25. Rd3 {[%clk 00:25:31]}
{[%emt 00:00:21]} Re4 {[%clk 00:36:59]} {[%emt 00:02:17]} 26. Qd1 {[%clk
00:23:56]} {[%emt 00:02:04]} b4 {[%clk 00:34:00]} {[%emt 00:03:30]} 27. Bg5
{[%clk 00:20:23]} {[%emt 00:04:03]} Bxg5 {[%clk 00:32:09]} {[%emt 00:02:21]} 28.
Nxg5 {[%clk 00:20:46]} {[%emt 00:00:07]} Re1+ {[%clk 00:32:10]} {[%emt
00:00:29]} 29. Qxe1 {[%clk 00:21:05]} {[%emt 00:00:11]} Qxd3 {[%clk 00:32:36]}
{[%emt 00:00:03]} 30. Rd1 {[%clk 00:20:18]} {[%emt 00:01:17]} Qc2 {[%clk
00:32:07]} {[%emt 00:01:00]} 31. g3 {[%clk 00:16:16]} {[%emt 00:04:32]} h6
{[%clk 00:31:11]} {[%emt 00:01:26]} 32. Nf3 {[%clk 00:12:45]} {[%emt 00:04:01]}
Qxb2 {[%clk 00:30:20]} {[%emt 00:01:21]} 33. Kg2 {[%clk 00:13:05]} {[%emt
00:00:10]} Qc3 {[%clk 00:30:13]} {[%emt 00:00:36]} 34. Qe2 {[%clk 00:13:15]}
{[%emt 00:00:21]} Qc4 {[%clk 00:29:31]} {[%emt 00:01:12]} 35. Qe1 {[%clk
00:12:42]} {[%emt 00:01:02]} Qe4 {[%clk 00:27:30]} {[%emt 00:02:31]} 0-1

[ePGN "0.1;DGT LiveChess/2.2.5"]

[Event "Hull 4NCL GM Norm Tournament"]
[Site "Canham Turner Centre"]
[Date "2022.10.16"]
[Round "9.1"]
[White "Czopor, Maciej"]
[Black "Sarakauskas, Gediminas"]
[Result "1-0"]
[TimeControl "1hr30 + 30sec inc"]
[WhiteElo "2424"]
[BlackElo "2395"]

1. e4 {[%clk 01:30:54]} {[%emt 00:00:04]} e5 {[%clk 01:30:52]} {[%emt
00:00:09]} 2. Nf3 {[%clk 01:31:20]} {[%emt 00:00:04]} Nc6 {[%clk 01:31:20]}
{[%emt 00:00:03]} 3. d4 {[%clk 01:31:45]} {[%emt 00:00:05]} exd4 {[%clk
01:31:44]} {[%emt 00:00:05]} 4. Nxd4 {[%clk 01:32:11]} {[%emt 00:00:04]} Bb4+
{[%clk 01:32:06]} {[%emt 00:00:08]} 5. c3 {[%clk 01:32:31]} {[%emt 00:00:10]}
Bc5 {[%clk 01:32:33]} {[%emt 00:00:03]} 6. Be3 {[%clk 01:32:57]} {[%emt
00:00:04]} Bb6 {[%clk 01:32:54]} {[%emt 00:00:09]} 7. Nf5 {[%clk 01:33:23]}
{[%emt 00:00:04]} Bxe3 {[%clk 01:33:18]} {[%emt 00:00:06]} 8. Nxe3 {[%clk
01:33:49]} {[%emt 00:00:04]} Nf6 {[%clk 01:33:32]} {[%emt 00:00:15]} 9. f3
{[%clk 01:34:14]} {[%emt 00:00:06]} O-O {[%clk 01:33:34]} {[%emt 00:00:28]} 10.
c4 {[%clk 01:33:43]} {[%emt 00:01:01]} d6 {[%clk 01:34:00]} {[%emt 00:00:04]}
11. Nc3 {[%clk 01:33:54]} {[%emt 00:00:20]} Nd7 {[%clk 01:34:05]} {[%emt
00:00:25]} 12. Qd2 {[%clk 01:33:43]} {[%emt 00:00:41]} Nc5 {[%clk 01:34:31]}
{[%emt 00:00:04]} 13. O-O-O {[%clk 01:28:55]} {[%emt 00:05:18]} a5 {[%clk
01:34:21]} {[%emt 00:00:40]} 14. g4 {[%clk 01:24:28]} {[%emt 00:04:57]} Qh4
{[%clk 00:52:39]} {[%emt 00:42:12]} 15. Kb1 {[%clk 01:13:45]} {[%emt 00:11:13]}
a4 {[%clk 00:43:20]} {[%emt 00:09:49]} 16. Ncd5 {[%clk 01:13:16]} {[%emt
00:00:58]} Qd8 {[%clk 00:43:05]} {[%emt 00:00:44]} 17. h4 {[%clk 01:11:07]}
{[%emt 00:02:39]} Be6 {[%clk 00:40:56]} {[%emt 00:02:40]} 18. g5 {[%clk
01:08:12]} {[%emt 00:03:25]} Kh8 {[%clk 00:34:50]} {[%emt 00:06:36]} 19. Be2
{[%clk 01:07:19]} {[%emt 00:01:23]} f5 {[%clk 00:33:06]} {[%emt 00:02:14]} 20.
gxf6 {[%clk 01:07:05]} {[%emt 00:00:44]} gxf6 {[%clk 00:33:35]} 21. Qc3 {[%clk
01:06:42]} {[%emt 00:00:54]} Ne5 {[%clk 00:33:21]} {[%emt 00:00:44]} 22. Rhg1
{[%clk 01:05:18]} {[%emt 00:01:54]} Bxd5 {[%clk 00:29:41]} {[%emt 00:04:10]} 23.
cxd5 {[%clk 01:03:47]} {[%emt 00:02:01]} Rg8 {[%clk 00:26:46]} {[%emt
00:03:23]} 24. Nf5 {[%clk 01:02:41]} {[%emt 00:01:37]} Qd7 {[%clk 00:25:33]}
{[%emt 00:01:42]} 25. Qe3 {[%clk 01:00:35]} {[%emt 00:02:38]} Rxg1 {[%clk
00:25:17]} {[%emt 00:00:46]} 26. Rxg1 {[%clk 01:00:59]} {[%emt 00:00:05]} Rg8
{[%clk 00:25:35]} {[%emt 00:00:11]} 27. Rxg8+ {[%clk 00:58:14]} {[%emt
00:03:16]} Kxg8 {[%clk 00:26:04]} 28. f4 {[%clk 00:53:03]} {[%emt 00:05:42]}
Ng6 {[%clk 00:25:45]} {[%emt 00:00:48]} 29. h5 {[%clk 00:51:48]} {[%emt
00:01:45]} Nf8 {[%clk 00:24:52]} {[%emt 00:01:22]} 30. Qd4 {[%clk 00:51:46]}
{[%emt 00:00:33]} Qe8 {[%clk 00:24:11]} {[%emt 00:01:07]} 31. Bf3 {[%clk
00:47:53]} {[%emt 00:04:26]} Kf7 {[%clk 00:17:41]} {[%emt 00:07:01]} 32. Qg1
{[%clk 00:48:03]} {[%emt 00:00:20]} Qd8 {[%clk 00:12:28]} {[%emt 00:05:43]} 33.
Qg7+ {[%clk 00:48:28]} {[%emt 00:00:04]} Ke8 {[%clk 00:12:57]} 34. h6 {[%clk
00:48:24]} {[%emt 00:00:35]} 1-0

[Event "Hull 4NCL GM Norm Tournament"]
[Site "Canham Turner Centre"]
[Date "2022.10.16"]
[Round "9.2"]
[White "Burg, Twan"]
[Black "Jackson, James P"]
[Result "1/2-1/2"]
[TimeControl "1hr30 + 30sec inc"]
[WhiteElo "2511"]
[BlackElo "2408"]

1. e4 {[%clk 01:30:57]} {[%emt 00:00:02]} e5 {[%clk 01:30:55]} {[%emt
00:00:06]} 2. Nf3 {[%clk 01:31:21]} {[%emt 00:00:05]} Nc6 {[%clk 01:31:21]}
{[%emt 00:00:04]} 3. Bb5 {[%clk 01:31:30]} {[%emt 00:00:21]} a6 {[%clk
01:31:46]} {[%emt 00:00:06]} 4. Ba4 {[%clk 01:31:53]} {[%emt 00:00:06]} d6
{[%clk 01:32:10]} {[%emt 00:00:06]} 5. c3 {[%clk 01:30:37]} {[%emt 00:01:46]}
Bd7 {[%clk 01:31:43]} {[%emt 00:00:57]} 6. O-O {[%clk 01:29:46]} {[%emt
00:01:21]} g5 {[%clk 01:31:42]} {[%emt 00:00:32]} 7. d4 {[%clk 01:29:00]}
{[%emt 00:01:16]} g4 {[%clk 01:32:06]} {[%emt 00:00:06]} 8. Ne1 {[%clk
01:28:11]} {[%emt 00:01:19]} Bh6 {[%clk 01:31:21]} {[%emt 00:01:15]} 9. Bxh6
{[%clk 01:21:15]} {[%emt 00:07:25]} Nxh6 {[%clk 01:31:46]} {[%emt 00:00:06]} 10.
Qd2 {[%clk 01:21:39]} {[%emt 00:00:06]} Qf6 {[%clk 01:31:28]} {[%emt 00:00:48]}
11. f4 {[%clk 01:16:57]} {[%emt 00:05:12]} exd4 {[%clk 01:23:08]} {[%emt
00:08:50]} 12. e5 {[%clk 01:17:16]} {[%emt 00:00:11]} Qg7 {[%clk 01:21:01]}
{[%emt 00:02:37]} 13. cxd4 {[%clk 01:13:41]} {[%emt 00:04:05]} O-O-O {[%clk
01:17:15]} {[%emt 00:04:16]} 14. Bxc6 {[%clk 01:10:59]} {[%emt 00:03:12]} Bxc6
{[%clk 01:17:35]} {[%emt 00:00:09]} 15. Nc3 {[%clk 01:11:19]} {[%emt 00:00:10]}
Nf5 {[%clk 01:15:19]} {[%emt 00:02:47]} 16. Nc2 {[%clk 01:05:18]} {[%emt
00:06:31]} g3 {[%clk 01:09:54]} {[%emt 00:05:55]} 17. h3 {[%clk 01:05:24]}
{[%emt 00:00:23]} Rhe8 {[%clk 00:54:49]} {[%emt 00:15:35]} 18. Nb4 {[%clk
01:00:19]} {[%emt 00:05:35]} dxe5 {[%clk 00:53:29]} {[%emt 00:01:51]} 19. Nxc6
{[%clk 01:00:37]} {[%emt 00:00:11]} bxc6 {[%clk 00:53:55]} {[%emt 00:00:05]} 20.
Qd3 {[%clk 01:00:53]} {[%emt 00:00:14]} e4 {[%clk 00:54:19]} {[%emt 00:00:06]}
21. Qxa6+ {[%clk 01:01:03]} {[%emt 00:00:20]} Kb8 {[%clk 00:54:18]} {[%emt
00:00:31]} 22. Nb5 {[%clk 00:51:20]} {[%emt 00:10:13]} cxb5 {[%clk 00:53:55]}
{[%emt 00:00:53]} 23. Qxb5+ {[%clk 00:51:43]} {[%emt 00:00:07]} Ka8 {[%clk
00:54:14]} {[%emt 00:00:12]} 24. Qa6+ {[%clk 00:50:19]} {[%emt 00:01:53]} Kb8
{[%clk 00:54:36]} {[%emt 00:00:09]} 25. Qb5+ {[%clk 00:50:44]} {[%emt
00:00:04]} Ka8 {[%clk 00:54:59]} {[%emt 00:00:07]} 26. Qa6+ {[%clk 00:50:28]}
{[%emt 00:00:46]} Kb8 {[%clk 00:55:10]} {[%emt 00:00:19]} 1/2-1/2

[Event "Hull 4NCL GM Norm Tournament"]
[Site "Canham Turner Centre"]
[Date "2022.10.16"]
[Round "9.3"]
[White "Royal, Shreyas"]
[Black "Nagy, Gabor"]
[Result "1-0"]
[TimeControl "1hr30 + 30sec inc"]
[WhiteElo "2431"]
[BlackElo "2488"]

1. d4 {[%clk 01:30:56]} {[%emt 00:00:01]} d5 {[%clk 01:30:38]} {[%emt
00:00:23]} 2. c4 {[%clk 01:31:22]} {[%emt 00:00:05]} e6 {[%clk 01:30:55]}
{[%emt 00:00:13]} 3. Nf3 {[%clk 01:31:45]} {[%emt 00:00:06]} dxc4 {[%clk
01:31:05]} {[%emt 00:00:21]} 4. e3 {[%clk 01:32:03]} {[%emt 00:00:11]} a6
{[%clk 01:31:12]} {[%emt 00:00:23]} 5. Bxc4 {[%clk 01:32:18]} {[%emt 00:00:16]}
Nf6 {[%clk 01:31:30]} {[%emt 00:00:11]} 6. O-O {[%clk 01:32:32]} {[%emt
00:00:17]} Nbd7 {[%clk 01:31:41]} {[%emt 00:00:19]} 7. b3 {[%clk 01:31:37]}
{[%emt 00:01:24]} c5 {[%clk 01:30:22]} {[%emt 00:01:50]} 8. Bb2 {[%clk
01:31:45]} {[%emt 00:00:23]} b5 {[%clk 01:27:37]} {[%emt 00:03:15]} 9. Be2
{[%clk 01:32:06]} {[%emt 00:00:08]} Bb7 {[%clk 01:27:50]} {[%emt 00:00:17]} 10.
a4 {[%clk 01:32:23]} {[%emt 00:00:13]} bxa4 {[%clk 01:27:05]} {[%emt 00:01:16]}
11. Rxa4 {[%clk 01:32:42]} {[%emt 00:00:11]} Be7 {[%clk 01:27:03]} {[%emt
00:00:31]} 12. Nbd2 {[%clk 01:32:17]} {[%emt 00:00:56]} O-O {[%clk 01:25:43]}
{[%emt 00:01:49]} 13. Ne5 {[%clk 01:11:02]} {[%emt 00:21:46]} Nb6 {[%clk
01:19:55]} {[%emt 00:06:19]} 14. Ra1 {[%clk 01:11:06]} {[%emt 00:00:26]} Nfd5
{[%clk 01:16:15]} {[%emt 00:04:10]} 15. Bf3 {[%clk 01:03:13]} {[%emt 00:08:23]}
Rb8 {[%clk 01:06:28]} {[%emt 00:10:16]} 16. Rc1 {[%clk 00:59:57]} {[%emt
00:03:46]} cxd4 {[%clk 01:06:12]} {[%emt 00:00:46]} 17. Bxd4 {[%clk 01:00:21]}
{[%emt 00:00:06]} Qe8 {[%clk 01:00:53]} {[%emt 00:05:50]} 18. e4 {[%clk
00:58:46]} {[%emt 00:02:05]} Rd8 {[%clk 00:55:14]} {[%emt 00:06:08]} 19. exd5
{[%clk 00:59:06]} {[%emt 00:00:10]} Nxd5 {[%clk 00:55:38]} {[%emt 00:00:06]} 20.
Nd3 {[%clk 00:48:47]} {[%emt 00:10:49]} Nb4 {[%clk 00:54:57]} {[%emt 00:01:11]}
21. Rc4 {[%clk 00:40:14]} {[%emt 00:09:03]} Nxd3 {[%clk 00:51:23]} {[%emt
00:04:04]} 22. Bxb7 {[%clk 00:40:37]} {[%emt 00:00:08]} Bb4 {[%clk 00:51:29]}
{[%emt 00:00:24]} 23. Ne4 {[%clk 00:39:02]} {[%emt 00:02:05]} Nb2 {[%clk
00:50:06]} {[%emt 00:01:53]} 24. Qg4 {[%clk 00:39:27]} {[%emt 00:00:05]} 1-0

[Event "Hull 4NCL GM Norm Tournament"]
[Site "Canham Turner Centre"]
[Date "2022.10.16"]
[Round "9.4"]
[White "Turner, Matthew J"]
[Black "Wadsworth, Matthew J"]
[Result "1/2-1/2"]
[TimeControl "1hr30 + 30sec inc"]
[WhiteElo "2461"]
[BlackElo "2467"]

1. d4 {[%clk 01:30:56]} {[%emt 00:00:03]} d5 {[%clk 01:27:51]} {[%emt
00:03:10]} 2. Nf3 {[%clk 01:30:39]} {[%emt 00:00:46]} Nf6 {[%clk 01:28:17]}
{[%emt 00:00:04]} 3. c4 {[%clk 01:29:29]} {[%emt 00:01:40]} c6 {[%clk
01:28:42]} {[%emt 00:00:04]} 4. cxd5 {[%clk 01:29:42]} {[%emt 00:00:17]} cxd5
{[%clk 01:29:08]} {[%emt 00:00:04]} 5. Nc3 {[%clk 01:30:07]} {[%emt 00:00:05]}
Nc6 {[%clk 01:29:32]} {[%emt 00:00:06]} 6. Bf4 {[%clk 01:30:19]} {[%emt
00:00:18]} Bf5 {[%clk 01:29:56]} {[%emt 00:00:06]} 7. e3 {[%clk 01:28:40]}
{[%emt 00:02:10]} e6 {[%clk 01:30:21]} {[%emt 00:00:04]} 8. Qb3 {[%clk
01:23:56]} {[%emt 00:05:14]} Bb4 {[%clk 01:30:46]} {[%emt 00:00:06]} 9. Be2
{[%clk 01:21:28]} {[%emt 00:02:58]} O-O {[%clk 01:29:00]} {[%emt 00:02:15]} 10.
O-O {[%clk 01:21:34]} {[%emt 00:00:24]} Nh5 {[%clk 01:19:34]} {[%emt 00:09:56]}
11. Ne5 {[%clk 01:14:14]} {[%emt 00:07:50]} Nxf4 {[%clk 01:15:57]} {[%emt
00:04:08]} 12. Nxc6 {[%clk 01:14:26]} {[%emt 00:00:19]} bxc6 {[%clk 01:10:48]}
{[%emt 00:05:39]} 13. Qxb4 {[%clk 01:14:22]} {[%emt 00:00:34]} Rb8 {[%clk
01:08:11]} {[%emt 00:03:06]} 14. Qa3 {[%clk 01:14:24]} {[%emt 00:00:28]} Nxe2+
{[%clk 01:07:41]} {[%emt 00:00:59]} 15. Nxe2 {[%clk 01:14:48]} {[%emt
00:00:06]} Qb6 {[%clk 01:07:37]} {[%emt 00:00:35]} 16. b3 {[%clk 01:14:40]}
{[%emt 00:00:38]} Bd3 {[%clk 01:02:17]} {[%emt 00:05:50]} 17. Rfe1 {[%clk
01:14:45]} {[%emt 00:00:25]} Rfc8 {[%clk 00:56:10]} {[%emt 00:06:37]} 18. Rac1
{[%clk 01:11:31]} {[%emt 00:03:44]} a5 {[%clk 00:54:07]} {[%emt 00:02:34]} 19.
Rc5 {[%clk 01:04:13]} {[%emt 00:07:47]} a4 {[%clk 00:53:34]} {[%emt 00:01:03]}
20. Nc1 {[%clk 00:59:38]} {[%emt 00:05:05]} Bb5 {[%clk 00:52:09]} {[%emt
00:01:55]} 21. h3 {[%clk 00:56:52]} {[%emt 00:03:16]} axb3 {[%clk 00:51:06]}
{[%emt 00:01:33]} 22. axb3 {[%clk 00:56:38]} {[%emt 00:00:44]} Ra8 {[%clk
00:50:37]} {[%emt 00:00:58]} 23. Qb2 {[%clk 00:55:42]} {[%emt 00:01:26]} Qa5
{[%clk 00:49:52]} {[%emt 00:01:16]} 24. Qc3 {[%clk 00:55:43]} {[%emt 00:00:28]}
Qxc3 {[%clk 00:47:10]} {[%emt 00:03:12]} 25. Rxc3 {[%clk 00:56:08]} {[%emt
00:00:06]} Ra3 {[%clk 00:43:59]} {[%emt 00:03:41]} 26. Nd3 {[%clk 00:54:02]}
{[%emt 00:02:35]} Bxd3 {[%clk 00:43:53]} {[%emt 00:00:37]} 27. Rxd3 {[%clk
00:54:28]} {[%emt 00:00:05]} Rb8 {[%clk 00:44:18]} {[%emt 00:00:05]} 28. Rc1
{[%clk 00:54:32]} {[%emt 00:00:25]} Raxb3 {[%clk 00:44:40]} {[%emt 00:00:08]}
1/2-1/2

[Event "Hull 4NCL GM Norm Tournament"]
[Site "Canham Turner Centre"]
[Date "2022.10.16"]
[Round "9.5"]
[White "Harvey, Marcus R"]
[Black "Willow, Jonah B"]
[Result "1/2-1/2"]
[TimeControl "1hr30 + 30sec inc"]
[WhiteElo "2463"]
[BlackElo "2395"]

1. c4 {[%clk 01:30:35]} {[%emt 00:00:24]} e5 {[%clk 01:30:28]} {[%emt
00:00:33]} 2. Nc3 {[%clk 01:30:41]} {[%emt 00:00:24]} Nc6 {[%clk 01:30:19]}
{[%emt 00:00:39]} 3. Nf3 {[%clk 01:30:43]} {[%emt 00:00:27]} f5 {[%clk
01:30:27]} {[%emt 00:00:22]} 4. d4 {[%clk 01:31:10]} {[%emt 00:00:04]} e4
{[%clk 01:30:53]} {[%emt 00:00:04]} 5. Ng1 {[%clk 01:28:34]} {[%emt 00:03:05]}
Bb4 {[%clk 01:29:24]} {[%emt 00:01:59]} 6. Bd2 {[%clk 01:27:10]} {[%emt
00:01:55]} Nf6 {[%clk 01:20:35]} {[%emt 00:09:19]} 7. e3 {[%clk 01:22:38]}
{[%emt 00:05:01]} d6 {[%clk 01:12:33]} {[%emt 00:08:32]} 8. Nh3 {[%clk
01:19:04]} {[%emt 00:04:04]} O-O {[%clk 01:08:43]} {[%emt 00:04:20]} 9. Nf4
{[%clk 01:16:32]} {[%emt 00:03:03]} Bxc3 {[%clk 01:07:58]} {[%emt 00:01:15]} 10.
Bxc3 {[%clk 01:15:39]} {[%emt 00:01:23]} g5 {[%clk 01:05:26]} {[%emt 00:03:02]}
11. Nh5 {[%clk 01:11:26]} {[%emt 00:04:43]} Bd7 {[%clk 00:56:09]} {[%emt
00:09:47]} 12. h4 {[%clk 01:07:21]} {[%emt 00:04:35]} Nxh5 {[%clk 00:52:10]}
{[%emt 00:04:28]} 13. Qxh5 {[%clk 01:06:58]} {[%emt 00:00:53]} g4 {[%clk
00:52:17]} {[%emt 00:00:24]} 14. Qh6 {[%clk 01:06:27]} {[%emt 00:01:01]} Qe7
{[%clk 00:44:43]} {[%emt 00:08:04]} 15. Be2 {[%clk 00:57:15]} {[%emt 00:09:42]}
a5 {[%clk 00:39:17]} {[%emt 00:05:56]} 16. O-O-O {[%clk 00:52:47]} {[%emt
00:04:58]} Nb4 {[%clk 00:36:50]} {[%emt 00:02:58]} 17. Kb1 {[%clk 00:53:00]}
{[%emt 00:00:17]} f4 {[%clk 00:36:28]} {[%emt 00:00:52]} 18. Rd2 {[%clk
00:41:42]} {[%emt 00:11:48]} f3 {[%clk 00:31:24]} {[%emt 00:05:34]} 19. Bd1
{[%clk 00:40:53]} {[%emt 00:01:19]} d5 {[%clk 00:29:07]} {[%emt 00:02:47]} 20.
cxd5 {[%clk 00:35:27]} {[%emt 00:05:56]} Nxd5 {[%clk 00:25:00]} {[%emt
00:04:37]} 21. Bb3 {[%clk 00:30:29]} {[%emt 00:05:28]} c6 {[%clk 00:23:44]}
{[%emt 00:01:46]} 22. Qh5 {[%clk 00:27:47]} {[%emt 00:03:13]} Bf5 {[%clk
00:17:28]} {[%emt 00:06:46]} 23. g3 {[%clk 00:22:28]} {[%emt 00:05:48]} Kg7
{[%clk 00:17:29]} {[%emt 00:00:29]} 24. Qg5+ {[%clk 00:21:07]} {[%emt
00:01:51]} Qxg5 {[%clk 00:17:57]} {[%emt 00:00:02]} 25. hxg5 {[%clk 00:21:31]}
{[%emt 00:00:06]} Kg6 {[%clk 00:15:54]} {[%emt 00:02:33]} 26. Rc2 {[%clk
00:20:44]} {[%emt 00:01:17]} Kxg5 {[%clk 00:15:45]} {[%emt 00:00:39]} 27. Bd2
{[%clk 00:20:45]} {[%emt 00:00:29]} Ne7 {[%clk 00:11:51]} {[%emt 00:04:25]} 28.
a3 {[%clk 00:18:29]} {[%emt 00:02:46]} h5 {[%clk 00:10:41]} {[%emt 00:01:40]}
29. d5 {[%clk 00:15:28]} {[%emt 00:03:31]} Nxd5 {[%clk 00:08:21]} {[%emt
00:02:50]} 30. Bxd5 {[%clk 00:15:34]} {[%emt 00:00:24]} cxd5 {[%clk 00:08:50]}
{[%emt 00:00:01]} 31. Bc3 {[%clk 00:15:03]} {[%emt 00:01:01]} Bd7 {[%clk
00:06:42]} {[%emt 00:02:37]} 32. Be5 {[%clk 00:13:48]} {[%emt 00:01:46]} Bc6
{[%clk 00:07:03]} {[%emt 00:00:08]} 33. Rc5 {[%clk 00:13:17]} {[%emt 00:01:01]}
Rfe8 {[%clk 00:05:44]} {[%emt 00:01:49]} 34. Bd4 {[%clk 00:13:18]} {[%emt
00:00:29]} Re6 {[%clk 00:05:36]} {[%emt 00:00:38]} 35. b3 {[%clk 00:12:13]}
{[%emt 00:01:35]} Rh6 {[%clk 00:03:30]} {[%emt 00:02:36]} 36. Rh4 {[%clk
00:11:19]} {[%emt 00:01:24]} Kf5 {[%clk 00:03:32]} {[%emt 00:00:29]} 37. Kb2
{[%clk 00:11:05]} {[%emt 00:00:44]} Ke6 {[%clk 00:03:18]} {[%emt 00:00:43]} 38.
Rc1 {[%clk 00:10:17]} {[%emt 00:01:18]} Kf7 {[%clk 00:02:23]} {[%emt 00:01:26]}
39. Rc5 {[%clk 00:09:50]} {[%emt 00:00:56]} Ke7 {[%clk 00:01:23]} {[%emt
00:01:28]} 40. Rc1 {[%clk 00:08:59]} {[%emt 00:01:23]} Rg8 {[%clk 00:01:05]}
{[%emt 00:00:48]} 41. Rc5 {[%clk 00:08:35]} {[%emt 00:00:55]} b6 {[%clk
00:00:51]} {[%emt 00:00:44]} 42. Rc1 {[%clk 00:08:24]} {[%emt 00:00:41]} Bd7
{[%clk 00:01:02]} {[%emt 00:00:20]} 43. Rch1 {[%clk 00:07:55]} {[%emt
00:00:59]} Be8 {[%clk 00:01:23]} {[%emt 00:00:09]} 44. Rc1 {[%clk 00:08:10]}
{[%emt 00:00:14]} Kd7 {[%clk 00:01:18]} {[%emt 00:00:35]} 45. Be5 {[%clk
00:08:08]} {[%emt 00:00:33]} Rc6 {[%clk 00:01:43]} {[%emt 00:00:05]} 46. Rxc6
{[%clk 00:08:26]} {[%emt 00:00:12]} Kxc6 {[%clk 00:02:12]} {[%emt 00:00:01]} 47.
Rh1 {[%clk 00:08:38]} {[%emt 00:00:18]} Kb7 {[%clk 00:02:10]} {[%emt 00:00:32]}
48. Rc1 {[%clk 00:07:37]} {[%emt 00:01:32]} Bc6 {[%clk 00:02:23]} {[%emt
00:00:17]} 49. Rh1 {[%clk 00:07:39]} {[%emt 00:00:28]} Be8 {[%clk 00:01:46]}
{[%emt 00:01:07]} 50. Rc1 {[%clk 00:07:59]} {[%emt 00:00:09]} Bc6 {[%clk
00:00:49]} {[%emt 00:01:27]} 51. Rh1 {[%clk 00:08:23]} {[%emt 00:00:06]}
1/2-1/2